bitfinex-derivatives/quotes_BTCF0:USTF0_20250906
["timestamp","ask_amount","ask_price","bid_price","bid_amount"]
[1757169828550,0.89406287,110940.0,110930.0,0.22012898]
[1757169828751,1.26277708,110940.0,110930.0,0.22012898]
[1757169837653,1.26277708,110940.0,110930.0,0.10651]
[1757169838457,0.44445708,110940.0,110930.0,0.10651]
[1757169838656,1.26273708,110940.0,110930.0,0.10651]
[1757169839956,0.89402287,110940.0,110930.0,0.22012898]
[1757169841360,0.89402287,110940.0,110930.0,0.10651]
[1757169841768,0.89402287,110940.0,110930.0,0.22012898]
[1757169842762,1.26273708,110940.0,110930.0,0.22012898]
[1757169843363,1.26273708,110940.0,110930.0,0.10651]
[1757169843565,1.30888384,110940.0,110930.0,0.52137097]
[1757169847672,0.89402287,110940.0,110930.0,0.52137097]
[1757169847868,0.49060384,110940.0,110930.0,0.52137097]
[1757169848073,0.89398287,110940.0,110930.0,0.52137097]
[1757169848371,1.30884384,110940.0,110930.0,0.52137097]
[1757169849775,0.89398287,110940.0,110930.0,0.52137097]
[1757169850074,1.30884384,110940.0,110930.0,0.52137097]
[1757169851379,0.07574287,110940.0,110930.0,0.52137097]
[1757169851677,0.89398287,110940.0,110930.0,0.52137097]
[1757169851879,1.30884384,110940.0,110930.0,0.52137097]
[1757169852081,0.89398287,110940.0,110930.0,0.52137097]
[1757169852280,1.30884384,110940.0,110930.0,0.52137097]
[1757169852580,1.30884384,110940.0,110930.0,0.63498995]
[1757169854586,0.07574287,110940.0,110930.0,0.63498995]
[1757169854785,0.89398287,110940.0,110930.0,0.88498995]
[1757169854982,1.30884384,110940.0,110930.0,0.88498995]
[1757169855282,1.30884384,110940.0,110930.0,0.77137097]
[1757169855984,1.30784384,110940.0,110930.0,0.77137097]
[1757169856284,1.30684384,110940.0,110930.0,0.77137097]
[1757169856579,0.07374287,110940.0,110930.0,0.88498995]
[1757169856780,0.85530287,110940.0,110930.0,0.88498995]
[1757169857483,1.27016384,110940.0,110930.0,0.88498995]
[1757169863087,1.27016384,110940.0,110930.0,0.77137097]
[1757169867601,1.27016384,110940.0,110930.0,0.35651]
[1757169867894,1.27016384,110940.0,110930.0,0.77137097]
[1757169868893,1.27016384,110940.0,110930.0,0.78941801]
[1757169872795,1.27016384,110940.0,110930.0,0.90303699]
[1757169875104,1.30676384,110940.0,110930.0,0.90303699]
[1757169877595,1.30676384,110940.0,110930.0,0.48817602]
[1757169877894,1.30676384,110940.0,110930.0,0.90303699]
[1757169879399,1.30676384,110940.0,110930.0,0.65303699]
[1757169886302,0.89190287,110940.0,110930.0,0.65303699]
[1757169886506,1.30676384,110940.0,110930.0,0.65303699]
[1757169893905,0.48860384,110940.0,110930.0,0.65303699]
[1757169894108,1.30664384,110940.0,110930.0,0.65303699]
[1757169898809,1.30664384,110940.0,110930.0,0.23817602]
[1757169899111,1.55664384,110940.0,110930.0,0.21543602]
[1757169900413,1.55664384,110940.0,110930.0,0.10181704]
[1757169901412,1.97150481,110940.0,110930.0,0.21543602]
[1757169901610,1.55664384,110940.0,110930.0,0.21543602]
[1757169902506,1.97150481,110940.0,110930.0,0.21543602]
[1757169902702,1.55864384,110940.0,110930.0,0.21543602]
[1757169903007,1.97350481,110940.0,110930.0,0.08804704]
[1757169903408,1.97350481,110940.0,110930.0,0.07]
[1757169905508,1.5126523,110940.0,110930.0,0.07]
[1757169909111,1.14378287,110940.0,110930.0,0.07]
[1757169909312,1.5125723,110940.0,110930.0,0.07]
[1757169921620,0.6946123,110940.0,110930.0,0.07]
[1757169921924,1.5125323,110940.0,110930.0,0.07]
[1757169939342,1.2625323,110940.0,110930.0,0.07]
[1757169949345,0.4446123,110940.0,110930.0,0.07]
[1757169949547,1.2623723,110940.0,110930.0,0.07]
[1757169958955,1.2622923,110940.0,110930.0,0.07]
[1757169965163,0.07574287,110940.0,110930.0,0.07]
[1757169965371,0.07574287,110940.0,110930.0,0.10566]
[1757169965762,0.89338287,110940.0,110930.0,0.10566]
[1757169966970,1.2622523,110940.0,110930.0,0.10566]
[1757169967574,1.30823797,110940.0,110930.0,0.5205151]
[1757169968668,1.30823797,110940.0,110930.0,0.10566]
[1757169968874,1.72309307,110940.0,110920.0,0.44650966]
[1757169969075,0.4169051,110930.0,110920.0,0.53817966]
[1757169969972,0.4169051,110930.0,110920.0,0.12332456]
[1757169970470,0.4169051,110930.0,110920.0,0.10165456]
[1757169972477,0.4169051,110930.0,110920.0,0.07013524]
[1757169973176,0.4179051,110930.0,110920.0,0.07013524]
[1757169976078,0.6679051,110930.0,110920.0,0.07013524]
[1757169976984,0.6689051,110930.0,110920.0,0.07013524]
[1757169979573,0.25405,110930.0,110920.0,0.07013524]
[1757169979777,0.6689051,110930.0,110920.0,0.07013524]
[1757169982385,0.6689051,110930.0,110920.0,0.00013524]
[1757169999291,0.4189051,110930.0,110920.0,0.00013524]
[1757170017008,0.8337602,110930.0,110900.0,0.12650898]
[1757170017306,0.8337602,110930.0,110920.0,0.00335]
[1757170017307,0.34415,110930.0,110920.0,0.00335]
[1757170017508,1.16341,110930.0,110920.0,0.00335]
[1757170018102,1.16341,110930.0,110900.0,0.12650898]
[1757170018308,0.4148551,110910.0,110900.0,0.14954898]
[1757170018503,0.81928,110910.0,110900.0,0.14954898]
[1757170018905,1.2341351,110910.0,110900.0,0.14954898]
[1757170019510,1.2341351,110910.0,110900.0,0.21954898]
[1757170019709,1.2341351,110910.0,110900.0,0.14954898]
[1757170020010,1.2341351,110910.0,110900.0,0.21954898]
[1757170020211,1.2341351,110910.0,110900.0,0.14954898]
[1757170020410,1.2341351,110910.0,110900.0,0.21954898]
[1757170020611,1.2341351,110910.0,110900.0,0.14954898]
[1757170020810,1.2341351,110910.0,110900.0,0.21954898]
[1757170021413,1.2341351,110910.0,110900.0,0.14954898]
[1757170021613,1.2341351,110910.0,110900.0,0.21954898]
[1757170021812,1.2341351,110910.0,110900.0,0.14954898]
[1757170022008,1.6489902,110910.0,110900.0,0.12650898]
[1757170022203,1.6489902,110910.0,110900.0,0.01289]
[1757170023112,1.6509902,110910.0,110900.0,0.01289]
[1757170024813,1.6509902,110910.0,110900.0,0.08289]
[1757170025111,1.6509902,110910.0,110900.0,0.01289]
[1757170025511,1.6509902,110910.0,110900.0,0.19650898]
[1757170025713,1.6509902,110910.0,110900.0,0.12650898]
[1757170026504,1.6509902,110910.0,110900.0,0.19650898]
[1757170026808,1.6509902,110910.0,110900.0,0.01289]
[1757170027517,1.19031973,110910.0,110900.0,0.01289]
[1757170034719,1.19031973,110910.0,110890.0,0.17249114]
[1757170034921,0.36903973,110900.0,110890.0,0.17249114]
[1757170035718,0.3780544,110900.0,110890.0,0.17249114]
[1757170036122,0.3780544,110900.0,110890.0,0.16912114]
[1757170036719,0.3780544,110900.0,110890.0,0.05550216]
[1757170039424,0.00901467,110900.0,110890.0,0.05550216]
[1757170039723,0.36903973,110900.0,110890.0,0.05550216]
[1757170040025,0.37810091,110900.0,110890.0,0.05550216]
[1757170042627,0.00906118,110900.0,110890.0,0.05550216]
[1757170042925,0.36903973,110900.0,110890.0,0.05550216]
[1757170046526,0.3779373,110900.0,110890.0,0.05550216]
[1757170046727,0.3779373,110900.0,110890.0,0.16912114]
[1757170050532,0.3779373,110900.0,110890.0,0.05550216]
[1757170052631,0.00889757,110900.0,110890.0,0.05550216]
[1757170052829,0.36903973,110900.0,110890.0,0.05550216]
[1757170053626,1.18679973,110900.0,110890.0,0.05550216]
[1757170054430,1.19600193,110900.0,110890.0,0.05550216]
[1757170054932,1.19600193,110900.0,110890.0,0.05887216]
[1757170055227,1.19600193,110900.0,110890.0,0.17249114]
[1757170064535,0.8269622,110900.0,110890.0,0.17249114]
[1757170064837,1.19600193,110900.0,110890.0,0.17249114]
[1757170067236,0.0092022,110900.0,110890.0,0.17249114]
[1757170067440,1.18679973,110900.0,110890.0,0.17249114]
[1757170070439,1.19591967,110900.0,110890.0,0.17249114]
[1757170075654,0.37815967,110900.0,110890.0,0.17249114]
[1757170075952,1.19587967,110900.0,110890.0,0.17249114]
[1757170076955,1.19587967,110900.0,110890.0,0.16912114]
[1757170077154,1.19587967,110900.0,110890.0,0.23912114]
[1757170077653,0.82683994,110900.0,110890.0,0.24249114]
[1757170077950,1.19587967,110900.0,110890.0,0.24249114]
[1757170078554,0.00911994,110900.0,110890.0,0.24249114]
[1757170078750,0.0001,110910.0,110890.0,0.86153087]
[1757170078953,0.36913973,110910.0,110900.0,0.03586]
[1757170079151,1.06139973,110910.0,110900.0,0.03586]
[1757170079854,1.06239973,110910.0,110900.0,0.03586]
[1757170080358,1.07152345,110910.0,110900.0,0.03586]
[1757170080853,1.07052345,110910.0,110900.0,0.03586]
[1757170081049,0.37916345,110910.0,110900.0,0.03586]
[1757170081253,1.19688345,110910.0,110900.0,0.03586]
[1757170082057,1.19788345,110910.0,110900.0,0.03586]
[1757170087456,1.19788345,110910.0,110900.0,0.14947898]
[1757170087862,1.19788345,110910.0,110900.0,0.03586]
[1757170088363,1.19788345,110910.0,110900.0,0.14947898]
[1757170089061,1.19788345,110910.0,110900.0,0.03586]
[1757170089462,1.65909758,110910.0,110900.0,0.03586]
[1757170090968,1.24397065,110910.0,110900.0,0.03586]
[1757170092464,0.42625065,110910.0,110900.0,0.03586]
[1757170092664,1.24393065,110910.0,110900.0,0.03586]
[1757170094865,0.82880372,110910.0,110900.0,0.03586]
[1757170095068,1.24393065,110910.0,110900.0,0.03586]
[1757170097768,0.82880372,110910.0,110900.0,0.03586]
[1757170097974,1.24393065,110910.0,110900.0,0.03586]
[1757170099675,1.24393065,110910.0,110900.0,0.03923]
[1757170100069,1.24393065,110910.0,110900.0,0.15284898]
[1757170100875,1.65905758,110910.0,110900.0,0.15284898]
[1757170102179,1.90905758,110910.0,110900.0,0.12981898]
[1757170103679,1.90905758,110910.0,110900.0,0.0162]
[1757170104081,1.90905758,110910.0,110900.0,0.00337]
[1757170119295,1.65905758,110910.0,110900.0,0.00337]
[1757170151528,1.19792586,110910.0,110900.0,0.00337]
[1757170168137,1.19760586,110910.0,110900.0,0.03974]
[1757170168630,0.38024586,110910.0,110900.0,0.03974]
[1757170168937,1.19756586,110910.0,110900.0,0.03974]
[1757170169437,0.38024586,110910.0,110900.0,0.03974]
[1757170169633,1.19756586,110910.0,110900.0,0.03974]
[1757170169838,0.38024586,110910.0,110900.0,0.03974]
[1757170170035,1.19756586,110910.0,110900.0,0.03974]
[1757170173836,1.19756586,110910.0,110900.0,0.01644]
[1757170174341,0.01112372,110910.0,110900.0,0.01644]
[1757170174541,1.19756586,110910.0,110900.0,0.03974]
[1757170174838,1.19756586,110910.0,110900.0,0.01644]
[1757170175444,0.38024586,110910.0,110900.0,0.01644]
[1757170175637,1.19756586,110910.0,110900.0,0.01644]
[1757170176642,1.19756586,110910.0,110900.0,0.03974]
[1757170181039,1.19756586,110910.0,110900.0,0.01644]
[1757170182548,0.38024586,110910.0,110900.0,0.01644]
[1757170182744,1.19752586,110910.0,110900.0,0.03974]
[1757170183649,1.19752586,110910.0,110900.0,0.01644]
[1757170190249,1.19752586,110910.0,110900.0,0.00337]
[1757170197858,0.38024586,110910.0,110900.0,0.00337]
[1757170198060,1.19744586,110910.0,110900.0,0.01729]
[1757170198559,1.19744586,110910.0,110900.0,0.03906]
[1757170201660,0.38024586,110910.0,110900.0,0.03906]
[1757170201857,1.19740586,110910.0,110900.0,0.03906]
[1757170202258,0.38024586,110910.0,110900.0,0.03906]
[1757170202459,1.19740586,110910.0,110900.0,0.03906]
[1757170202965,1.19740586,110910.0,110900.0,0.01729]
[1757170207249,1.19740586,110910.0,110900.0,0.03906]
[1757170213464,1.65870708,110910.0,110900.0,0.03906]
[1757170214460,0.84154708,110910.0,110900.0,0.03906]
[1757170214660,1.65862708,110910.0,110900.0,0.03906]
[1757170218969,1.65862708,110910.0,110900.0,0.01729]
[1757170222875,0.84154708,110910.0,110900.0,0.01729]
[1757170223067,1.65858708,110910.0,110900.0,0.01729]
[1757170238989,1.65858708,110910.0,110900.0,0.03896]
[1757170240188,1.65858708,110910.0,110900.0,0.01729]
[1757170242491,1.65858708,110910.0,110900.0,0.03896]
[1757170250497,1.65858708,110910.0,110900.0,0.01729]
[1757170251997,1.65858708,110910.0,110900.0,0.00337]
[1757170254803,1.65858708,110910.0,110900.0,0.01695]
[1757170255104,1.65858708,110910.0,110900.0,0.03806]
[1757170255602,0.84154708,110910.0,110900.0,0.03806]
[1757170255803,1.65834708,110910.0,110900.0,0.03806]
[1757170256701,1.65834708,110910.0,110900.0,0.01695]
[1757170257092,1.65834708,110910.0,110900.0,0.00337]
[1757170257292,0.84154708,110910.0,110900.0,0.00337]
[1757170257495,1.65834708,110910.0,110900.0,0.00337]
[1757170259707,1.65734708,110910.0,110900.0,0.00337]
[1757170259906,1.65934708,110910.0,110900.0,0.00337]
[1757170263108,2.03934708,110910.0,110900.0,0.00337]
[1757170268609,2.03934708,110910.0,110890.0,0.0001]
[1757170268815,0.41521168,110900.0,110890.0,0.0001]
[1757170269823,0.82902372,110910.0,110890.0,0.03479]
[1757170270020,0.41521168,110900.0,110890.0,0.01368]
[1757170270520,0.41621168,110900.0,110890.0,0.01368]
[1757170271120,0.41521168,110900.0,110890.0,0.01368]
[1757170272920,0.41621168,110900.0,110890.0,0.01368]
[1757170273219,0.41621168,110900.0,110890.0,0.0001]
[1757170275510,0.37015557,110900.0,110890.0,0.0001]
[1757170281626,1.18755557,110900.0,110890.0,0.0001]
[1757170282026,0.37015557,110900.0,110890.0,0.0001]
[1757170282230,1.18751557,110900.0,110890.0,0.0001]
[1757170282828,0.37015557,110900.0,110890.0,0.0001]
[1757170283131,1.18747557,110900.0,110890.0,0.0001]
[1757170284225,0.37015557,110900.0,110890.0,0.03562]
[1757170284432,1.18743557,110900.0,110890.0,0.03562]
[1757170285434,1.18743557,110900.0,110890.0,0.01304]
[1757170286341,1.18743557,110900.0,110890.0,0.03562]
[1757170293332,1.18743557,110900.0,110890.0,0.01304]
[1757170293731,1.18743557,110900.0,110890.0,0.0001]
[1757170296033,1.51743557,110900.0,110890.0,0.0001]
[1757170297038,1.76743557,110900.0,110890.0,0.0001]
[1757170297542,1.76743557,110900.0,110880.0,0.00463524]
[1757170297742,0.36915557,110890.0,110880.0,0.00463524]
[1757170300343,1.09831114,110890.0,110880.0,0.00463524]
[1757170301140,1.09831114,110890.0,110880.0,0.00563524]
[1757170303241,1.09831114,110890.0,110880.0,0.00113524]
[1757170303442,1.34831114,110890.0,110880.0,0.00113524]
[1757170304242,1.34831114,110890.0,110880.0,0.00563524]
[1757170306536,2.16631114,110890.0,110880.0,0.00563524]
[1757170309045,2.16627114,110890.0,110880.0,0.00563524]
[1757170314547,2.16627114,110890.0,110860.0,0.03496]
[1757170314743,0.36915557,110870.0,110860.0,0.03496]
[1757170314942,1.18731557,110870.0,110860.0,0.03496]
[1757170316949,1.18731557,110870.0,110860.0,0.03796]
[1757170317248,1.18731557,110870.0,110860.0,0.03806]
[1757170318648,1.18731557,110870.0,110860.0,0.04006]
[1757170319152,1.25823129,110870.0,110860.0,0.04006]
[1757170322248,0.88907572,110870.0,110860.0,0.04006]
[1757170322449,1.25823129,110870.0,110860.0,0.04006]
[1757170323249,1.25807129,110870.0,110860.0,0.04006]
[1757170324349,0.88891572,110870.0,110860.0,0.04006]
[1757170324553,1.25807129,110870.0,110860.0,0.04006]
[1757170327449,1.25807129,110870.0,110860.0,0.05801337]
[1757170330458,0.44007129,110870.0,110860.0,0.05801337]
[1757170330757,1.25787129,110870.0,110860.0,0.05801337]
[1757170335463,1.30413389,110870.0,110860.0,0.05801337]
[1757170336356,0.48633389,110870.0,110860.0,0.05801337]
[1757170336757,1.30385389,110870.0,110860.0,0.05801337]
[1757170336955,0.48633389,110870.0,110860.0,0.05801337]
[1757170337161,1.30385389,110870.0,110860.0,0.05801337]
[1757170337862,1.30385389,110870.0,110860.0,0.17163235]
[1757170341270,1.30385389,110870.0,110860.0,0.05801337]
[1757170343468,1.30357389,110870.0,110860.0,0.47343154]
[1757170343772,1.30357389,110870.0,110860.0,0.05801337]
[1757170347569,1.30345389,110870.0,110860.0,0.05801337]
[1757170348580,0.48633389,110870.0,110860.0,0.05801337]
[1757170349071,1.30345389,110870.0,110860.0,0.05801337]
[1757170350380,0.88803572,110870.0,110860.0,0.05801337]
[1757170350584,1.30345389,110870.0,110860.0,0.05801337]
[1757170352084,0.88803572,110870.0,110860.0,0.05801337]
[1757170352285,1.30345389,110870.0,110860.0,0.05801337]
[1757170352977,1.30345389,110870.0,110860.0,0.17163235]
[1757170356586,1.30345389,110870.0,110860.0,0.05801337]
[1757170367397,0.07091572,110870.0,110860.0,0.05801337]
[1757170367595,0.40396,110870.0,110860.0,0.72343154]
[1757170367802,0.40396,110870.0,110860.0,0.83705052]
[1757170367992,0.40396,110870.0,110860.0,0.90705052]
[1757170369089,0.41565341,110880.0,110870.0,0.01266]
[1757170369090,1.23273341,110880.0,110870.0,0.01266]
[1757170369294,1.23263341,110880.0,110870.0,0.03418]
[1757170369494,0.41555341,110880.0,110870.0,0.03418]
[1757170369800,1.23263341,110880.0,110870.0,0.56321715]
[1757170370405,1.30355717,110880.0,110870.0,0.56321715]
[1757170370802,1.30355717,110880.0,110870.0,0.56421715]
[1757170371100,1.30355717,110880.0,110870.0,0.14879898]
[1757170372200,1.30355717,110880.0,110870.0,0.14979898]
[1757170372700,1.30355717,110880.0,110870.0,0.45159817]
[1757170373200,1.30355717,110880.0,110870.0,0.03618]
[1757170374500,1.30355717,110880.0,110870.0,0.45159817]
[1757170377101,0.888139,110880.0,110870.0,0.45159817]
[1757170377303,1.30355717,110880.0,110870.0,0.45159817]
[1757170378004,1.30355717,110880.0,110870.0,0.03618]
[1757170378204,1.30355717,110880.0,110870.0,0.45159817]
[1757170380902,1.30355717,110880.0,110870.0,0.03618]
[1757170381100,1.30355717,110880.0,110870.0,0.45159817]
[1757170382598,1.30855717,110880.0,110870.0,0.45159817]
[1757170384305,1.30855717,110880.0,110870.0,0.03618]
[1757170384507,1.30855717,110880.0,110870.0,0.45159817]
[1757170385708,0.49147717,110880.0,110870.0,0.45159817]
[1757170385908,1.30843717,110880.0,110870.0,0.45159817]
[1757170387107,0.49147717,110880.0,110870.0,0.56521715]
[1757170387308,1.30839717,110880.0,110870.0,0.56521715]
[1757170389710,1.30839717,110880.0,110870.0,0.14979898]
[1757170389911,1.30839717,110880.0,110870.0,0.56521715]
[1757170393213,1.30839717,110880.0,110870.0,0.45159817]
[1757170395413,1.26213953,110880.0,110870.0,0.03618]
[1757170396107,0.892979,110880.0,110870.0,0.03618]
[1757170396317,0.892979,110880.0,110870.0,0.14979898]
[1757170404623,1.26213953,110880.0,110870.0,0.14979898]
[1757170407524,0.892979,110880.0,110870.0,0.14979898]
[1757170414226,0.892979,110880.0,110870.0,0.03618]
[1757170421634,1.26213953,110880.0,110870.0,0.03618]
[1757170424124,1.51213953,110880.0,110870.0,0.0021]
[1757170426640,1.88130006,110880.0,110870.0,0.0021]
[1757170428237,1.51213953,110880.0,110870.0,0.0021]
[1757170430241,1.84213953,110880.0,110870.0,0.0021]
[1757170445247,2.21130006,110880.0,110870.0,0.0021]
[1757170445750,1.472979,110880.0,110870.0,0.0021]
[1757170445949,2.21130006,110880.0,110870.0,0.0021]
[1757170447350,1.39438006,110880.0,110870.0,0.0021]
[1757170447548,1.84193953,110880.0,110870.0,0.0021]
[1757170449359,1.02521953,110880.0,110870.0,0.0021]
[1757170449659,1.51193953,110880.0,110870.0,0.0021]
[1757170455466,1.97365004,110880.0,110870.0,0.0021]
[1757170460662,1.72365004,110880.0,110870.0,0.0021]
[1757170460867,2.06365004,110880.0,110870.0,0.0021]
[1757170469274,2.31365004,110880.0,110870.0,0.0021]
[1757170474374,6e-05,110860.0,110850.0,0.01290001]
[1757170474573,1.64761104,110860.0,110850.0,0.01290001]
[1757170476372,1.64761104,110860.0,110850.0,0.03190001]
[1757170477570,1.64761104,110860.0,110850.0,0.05390001]
[1757170478278,1.64761104,110860.0,110850.0,0.03190001]
[1757170478573,1.64761104,110860.0,110850.0,0.05590001]
[1757170479469,1.64761104,110860.0,110850.0,0.03390001]
[1757170480073,1.64761104,110860.0,110850.0,0.021]
[1757170481372,1.64761104,110860.0,110850.0,0.002]
[1757170481565,1.64761104,110860.0,110850.0,0.004]
[1757170484381,0.81674,110860.0,110850.0,0.004]
[1757170484582,1.64761104,110860.0,110850.0,0.004]
[1757170486181,1.23217552,110860.0,110850.0,0.004]
[1757170487981,0.41549552,110860.0,110850.0,0.004]
[1757170488177,1.23221552,110860.0,110850.0,0.004]
[1757170488377,1.23221552,110860.0,110850.0,0.04046]
[1757170489280,1.64765104,110860.0,110850.0,0.004]
[1757170491081,1.64765104,110860.0,110850.0,0.003]
[1757170491583,1.64765104,110860.0,110850.0,0.001]
[1757170491789,1.64765104,110860.0,110850.0,0.002]
[1757170492687,0.83093104,110860.0,110850.0,0.002]
[1757170492880,1.64765104,110860.0,110850.0,0.002]
[1757170495092,0.83093104,110860.0,110850.0,0.002]
[1757170495387,1.64761104,110860.0,110850.0,0.002]
[1757170495689,0.83093104,110860.0,110850.0,0.002]
[1757170495890,1.64761104,110860.0,110850.0,0.002]
[1757170508085,0.83093104,110860.0,110850.0,0.002]
[1757170508290,1.64757104,110860.0,110850.0,0.002]
[1757170508490,1.64757104,110860.0,110850.0,0.03846]
[1757170508702,1.23213552,110860.0,110850.0,0.03846]
[1757170517500,1.1860837,110860.0,110850.0,0.03846]
[1757170522604,0.3694437,110860.0,110850.0,0.03846]
[1757170522799,1.1860037,110860.0,110850.0,0.03846]
[1757170540727,6e-05,110860.0,110850.0,0.28846]
[1757170540913,1.1859237,110860.0,110850.0,0.28846]
[1757170541714,0.81654,110860.0,110850.0,0.28846]
[1757170541915,1.1859237,110860.0,110850.0,0.28846]
[1757170545928,0.3694437,110860.0,110850.0,0.28846]
[1757170546230,1.819859,110880.0,110870.0,0.03486]
[1757170546525,3.3727227,110880.0,110870.0,0.03486]
[1757170547024,3.003339,110880.0,110870.0,0.03486]
[1757170547227,3.3727227,110880.0,110870.0,0.03486]
[1757170547725,3.003339,110880.0,110870.0,0.03486]
[1757170547925,3.3727227,110880.0,110870.0,0.03486]
[1757170548533,3.3736827,110880.0,110870.0,0.03486]
[1757170549118,3.3746827,110880.0,110870.0,0.03486]
[1757170549426,1.6310427,110880.0,110870.0,0.03486]
[1757170555436,1.261659,110880.0,110870.0,0.03486]
[1757170555733,1.6310427,110880.0,110870.0,0.03486]
[1757170577448,2.0923968,110880.0,110870.0,0.03486]
[1757170579348,1.3151879,110880.0,110870.0,0.03486]
[1757170579649,0.4935879,110880.0,110870.0,0.03486]
[1757170579948,1.3150679,110880.0,110870.0,0.7002289]
[1757170580147,1.3150679,110880.0,110870.0,0.28486]
[1757170580442,1.3150679,110880.0,110870.0,0.7002289]
[1757170580747,1.3150679,110880.0,110870.0,0.28486]
[1757170581449,1.3140679,110880.0,110870.0,0.28486]
[1757170581648,1.3130679,110880.0,110870.0,0.28486]
[1757170583349,0.897699,110880.0,110870.0,0.28486]
[1757170583649,1.3130679,110880.0,110870.0,0.28486]
[1757170585950,1.3130679,110880.0,110870.0,0.35486]
[1757170591157,1.3130679,110880.0,110870.0,0.28486]
[1757170591661,1.3130679,110880.0,110870.0,0.35486]
[1757170592659,1.3130679,110880.0,110870.0,0.7702289]
[1757170593660,1.3130679,110880.0,110870.0,0.7002289]
[1757170599271,1.3130679,110880.0,110870.0,0.4502289]
[1757170601967,1.3130679,110880.0,110870.0,0.03486]
[1757170615479,1.7284368,110880.0,110870.0,0.03486]
[1757170615884,1.3130679,110880.0,110870.0,0.03486]
[1757170622792,1.7284368,110880.0,110870.0,0.03486]
[1757170627185,1.7284368,110880.0,110870.0,0.14847898]
[1757170632894,1.7284368,110880.0,110870.0,0.03486]
[1757170637994,1.3130679,110880.0,110870.0,0.03486]
[1757170638794,0.897699,110880.0,110870.0,0.03486]
[1757170638994,1.3130679,110880.0,110870.0,0.03486]
[1757170639596,1.26689678,110880.0,110870.0,0.03486]
[1757170650006,1.26689678,110880.0,110870.0,0.14847898]
[1757170654318,1.26689678,110880.0,110870.0,0.21847898]
[1757170654513,1.26689678,110880.0,110870.0,0.10486]
[1757170659717,0.44541678,110880.0,110870.0,0.10486]
[1757170659920,1.26361678,110880.0,110870.0,0.10486]
[1757170660119,1.26361678,110880.0,110870.0,0.03486]
[1757170661024,1.26357678,110880.0,110870.0,0.03486]
[1757170661820,1.26353678,110880.0,110870.0,0.03486]
[1757170662220,0.44541678,110880.0,110870.0,0.03486]
[1757170662518,1.26353678,110880.0,110870.0,0.03486]
[1757170662819,1.26349678,110880.0,110870.0,0.03486]
[1757170666626,1.26349678,110880.0,110870.0,0.14847898]
[1757170686951,0.894299,110880.0,110870.0,0.14847898]
[1757170687250,1.26349678,110880.0,110870.0,0.14847898]
[1757170690354,1.26349678,110880.0,110870.0,0.03486]
[1757170695560,0.894299,110880.0,110870.0,0.03486]
[1757170695760,1.26289678,110880.0,110870.0,0.03486]
[1757170701462,1.30903133,110880.0,110870.0,0.03486]
[1757170709268,1.30903133,110880.0,110870.0,0.14847898]
[1757170714371,1.30903133,110880.0,110870.0,0.03486]
[1757170724271,1.30903133,110880.0,110870.0,0.14847898]
[1757170726677,1.30903133,110880.0,110870.0,0.03486]
[1757170727572,1.30903133,110880.0,110870.0,0.14847898]
[1757170731378,0.893699,110880.0,110870.0,0.14847898]
[1757170731575,1.30903133,110880.0,110870.0,0.14847898]
[1757170731975,1.30903133,110880.0,110870.0,0.03486]
[1757170733876,1.72436366,110880.0,110870.0,0.03486]
[1757170742986,0.893699,110880.0,110870.0,0.03486]
[1757170743189,1.72436366,110880.0,110870.0,0.03486]
[1757170752003,1.72436366,110880.0,110870.0,0.01296]
[1757170752600,1.30903133,110880.0,110870.0,0.01296]
[1757170752795,1.30903133,110880.0,110870.0,0.03506]
[1757170755502,1.72436366,110880.0,110870.0,0.03506]
[1757170761509,1.26291567,110880.0,110870.0,0.03506]
[1757170764210,1.26291567,110880.0,110860.0,0.14496735]
[1757170764812,1.32291567,110880.0,110860.0,0.14496735]
[1757170765110,1.32291567,110880.0,110870.0,0.03387]
[1757170776020,1.32291567,110880.0,110870.0,0.14748898]
[1757170781127,1.32291567,110880.0,110870.0,0.03387]
[1757170781815,1.32291567,110880.0,110870.0,0.14748898]
[1757170782726,1.32291567,110880.0,110870.0,0.03387]
[1757170785127,0.953699,110880.0,110870.0,0.03387]
[1757170785326,1.32291567,110880.0,110870.0,0.03387]
[1757170785929,0.953699,110880.0,110870.0,0.03387]
[1757170786130,1.32291567,110880.0,110870.0,0.03387]
[1757170787930,1.32291567,110880.0,110870.0,0.14748898]
[1757170792440,0.136219,110880.0,110870.0,0.14748898]
[1757170792632,0.953339,110880.0,110870.0,0.14748898]
[1757170792833,1.32255567,110880.0,110870.0,0.14748898]
[1757170798139,1.32255567,110880.0,110870.0,0.03387]
[1757170802541,0.953339,110880.0,110870.0,0.03387]
[1757170803040,1.32255567,110880.0,110870.0,0.03387]
[1757170812143,1.26255567,110880.0,110870.0,0.03387]
[1757170812348,1.60255567,110880.0,110870.0,0.03387]
[1757170819652,1.60255567,110880.0,110870.0,0.14748898]
[1757170821266,1.60255567,110880.0,110870.0,0.03387]
[1757170823470,2.0640881,110880.0,110870.0,0.03387]
[1757170824865,0.83159355,110880.0,110870.0,0.44924455]
[1757170825071,1.64859355,110880.0,110870.0,0.44924455]
[1757170825371,1.64859355,110880.0,110870.0,0.56286353]
[1757170826371,1.64859355,110880.0,110870.0,0.58104231]
[1757170826872,1.64859355,110880.0,110870.0,0.16566776]
[1757170827066,1.64859355,110880.0,110870.0,0.58104231]
[1757170830374,1.64859355,110880.0,110870.0,0.16566776]
[1757170830576,1.64859355,110880.0,110870.0,0.58104231]
[1757170840985,0.416219,110880.0,110870.0,0.58104231]
[1757170841184,0.807339,110880.0,110870.0,0.65104231]
[1757170841592,0.076219,110880.0,110870.0,0.65104231]
[1757170841991,0.076219,110880.0,110870.0,0.90104231]
[1757170842192,0.78722,110890.0,110880.0,0.03406]
[1757170842389,1.45619526,110890.0,110880.0,0.44943455]
[1757170842794,1.48595526,110890.0,110880.0,0.44943455]
[1757170843393,0.07366071,110890.0,110880.0,0.44943455]
[1757170843594,1.30595526,110890.0,110880.0,0.44943455]
[1757170843792,1.30595526,110890.0,110880.0,0.03406]
[1757170843996,1.30595526,110890.0,110880.0,0.44943455]
[1757170844292,1.30595526,110890.0,110880.0,0.56305353]
[1757170845593,1.30591526,110890.0,110880.0,0.56305353]
[1757170846890,1.30591526,110890.0,110880.0,0.14767898]
[1757170847090,1.30591526,110890.0,110880.0,0.56305353]
[1757170847495,0.89054071,110890.0,110880.0,0.56305353]
[1757170847796,1.30591526,110890.0,110880.0,0.56305353]
[1757170848890,0.89054071,110890.0,110880.0,0.56305353]
[1757170851200,1.30591526,110890.0,110880.0,0.56305353]
[1757170854206,0.48903526,110890.0,110880.0,0.56305353]
[1757170854503,1.30583526,110890.0,110880.0,0.56305353]
[1757170855305,0.48903526,110890.0,110880.0,0.56305353]